[Event "Fagernes Chess GM-Swiss 2025"]
[Site "Fagernes"]
[Date "2025.04.14"]
[Round "2.1"]
[White "Csonka, Balazs"]
[Black "Kantor, Gergely"]
[Result "1/2-1/2"]
[Annotator "TA"]
[ECO "C78"]
[WhiteElo "2459"]
[BlackElo "2578"]
[PlyCount "48"]
[EventDate "2025.04.12"]
[EventCountry "NOR"]
[SourceTitle "playchess.com"]
[Source "ChessBase"]
[SourceQuality "1"]
[TimeControl "40/6000+30:2400+30"]

{[%evp 17,35,0,0,0,0,0,0,0,0,0,0,0,6,0,0,0,0,0,0,0]} 1. e4 {[%emt 0:00:05]} e5 {[%emt 0:00:24]} 2. Nf3 {[%emt 0:00:06]} Nc6 {[%emt 0:00:13]} 3. Bb5 {[%emt 0:00:06]} a6 {[%emt 0:00:47]} 4. Ba4 {[%emt 0:00:07]} Nf6 {[%emt 0:00:15]} 5. O-O {[%emt 0:00:09]} b5 {[%emt 0:01:09]} 6. Bb3 {[%emt 0:00:10]} Bc5 {[%emt 0:00:43]} 7. c3 {[%emt 0:02:01]} d6 {[%emt 0:01:15]} 8. d4 {[%emt 0:00:13]} Bb6 {[%emt 0:01:26]} 9. dxe5 {[%emt 0:04:07] 9.Be3 is becoming the main line.} Nxe5 {[%emt 0:01:46] The position is equal.} 10. Nxe5 {[%emt 0:00:18] C78: Ruy Lopez: Archangelsk and Möller Defences.} dxe5 {[%emt 0:00:43]} 11. Qxd8+ {[%emt 0:00:35]} Kxd8 {[%emt 0:00:05]} 12. Bxf7 {[%emt 0:00:57]} Rf8 {[%emt 0:00:55]} 13. Bd5 {[%emt 0:01:35]} Nxd5 {[%emt 0:01:00]} 14. exd5 {[%emt 0:00:07]} Bb7 {[%emt 0:00:29]} 15. Be3 {[%emt 0:00:37]} Bxe3 {[%emt 0:00:41]} (15... Bxd5 $2 {loses.} 16. Rd1 $18) 16. fxe3 {[%emt 0:00:07]} Rxf1+ {[%emt 0:00:22]} 17. Kxf1 {[%emt 0:00:06]} Bxd5 {[%emt 0:00:18]} 18. Nd2 {[%emt 0:00:04] A rather calm draw.   Weighted Error Value: White=0.01 (flawless) /Black=0.00 (flawless)   OK:         	White=3     	Black=4      Best:        	---       	Black=2} Ke7 $146 19. e4 Be6 20. Ke2 a5 21. a4 c6 22. axb5 cxb5 23. Ke3 a4 24. Nf3 Kf6 {½-½ Vachier Lagrave,M (2734)-Nepomniachtchi,I (2771) Sinquefield Cup 10th 2023 (5)} 1/2-1/2

[Event "Fagernes Chess GM-Swiss 2025"]
[Site "Fagernes"]
[Date "2025.04.14"]
[Round "2.2"]
[White "Mitusov, Semen"]
[Black "Gopal G.N."]
[Result "1/2-1/2"]
[Annotator "TA"]
[ECO "B90"]
[WhiteElo "2459"]
[BlackElo "2556"]
[PlyCount "213"]
[EventDate "2025.04.12"]
[EventCountry "NOR"]
[SourceTitle "playchess.com"]
[Source "ChessBase"]
[SourceQuality "1"]
[TimeControl "40/6000+30:2400+30"]

{[%evp 14,212,10,0,10,4,10,6,6,8,7,8,17,12,12,8,12,8,8,8,4,14,21,32,27,26,21,14,16,11,11,10,14,0,0,0,0,0,9,6,8,6,6,0,0,0,0,0,0,0,0,0,0,0,0,0,0,0,0,0,0,0,0,0,0,0,0,0,0,0,0,0,8,0,0,0,0,0,0,0,0,0,0,0,24,24,24,24,24,24,24,24,24,24,24,24,24,8,24,24,24,24,24,24,24,24,24,24,24,24,24,8,24,24,24,24,24,24,24,24,24,0,24,8,24,24,24,24,24,24,24,24,24,24,24,24,24,24,24,24,24,24,24,24,24,0,0,0,0,0,0,8,116,116,116,0,62,0,116,116,116,62,116,62,116,116,116,62,116,0,116,62,116,0,0,0,0,0,0,0,116,0,0,0,62,62,116,62,116,116,116,116,116,116,116,116,116,0,0,0,0]} 1. e4 {[%emt 0:02:03]} c5 {[%emt 0:00:03]} 2. Nf3 {[%emt 0:00:22]} d6 {[%emt 0:00:06]} 3. d4 {[%emt 0:00:04]} cxd4 {[%emt 0:00:07]} 4. Nxd4 {[%emt 0:00:10]} Nf6 {[%emt 0:00:05]} 5. Nc3 {[%emt 0:00:06]} a6 {[%emt 0:00:06]} 6. a4 {[%emt 0:01:12]} e5 {[%emt 0:01:34]} 7. Nf3 {[%emt 0:00:34]} Be7 {[%emt 0:01:30]} 8. Bg5 {[%emt 0:00:44]} Be6 {[%emt 0:01:31] B90: Sicilian Najdorf: Unusual White 6th moves, 6 Be3 Ng4 and 6 Be3 e5.} 9. Bxf6 {[%emt 0:00:17]} Bxf6 {[%emt 0:00:03]} 10. Nd5 {[%emt 0:00:07] Dodges Qb6} Nd7 {[%emt 0:00:45]} 11. Bc4 {[%emt 0:00:09]} Rc8 {[%emt 0:02:44]} 12. Qd3 {[%emt 0:04:50]} Nb6 {[%emt 0:06:16]} 13. Nxf6+ {[%emt 0:00:23]} Qxf6 {[%emt 0:00:08]} 14. Bxe6 {[%emt 0:00:07]} Qxe6 {[%emt 0:00:09]} 15. O-O {[%emt 0:00:07]} O-O {[%emt 0:00:14]} 16. Rfd1 {[%emt 0:00:20][%cal Oa4a5]} Rc6 {[%emt 0:06:00]} 17. c3 {[%emt 0:07:41]} Nd7 {[%emt 0:16:21]} 18. Nd2 {[%emt 0:02:21]} Nc5 {[%emt 0:14:03]} 19. Qe2 {[%emt 0:20:41]} f5 {[%emt 0:13:37]} 20. f3 $146 {[%emt 0:09:48]} (20. exf5 Qxf5 21. Nc4 Ne6 22. Nxd6 Qg6 23. Qd3 Qxd3 24. Rxd3 Rd8 25. Rad1 Nc5 26. R3d2 Nxa4 {½-½ Staroske,U (2473)-Nekhaev,A (2514) Samarin Memorial email 2014}) 20... fxe4 {[%emt 0:04:22]} 21. Nxe4 {[%emt 0:01:50]} Nxe4 {[%emt 0:02:14]} 22. fxe4 {[%emt 0:19:13]} Rf4 {[%emt 0:11:50]} 23. Rd5 {[%emt 0:01:06]} Qg4 {[%emt 0:07:57]} 24. Qxg4 {[%emt 0:04:44]} Rxg4 {[%emt 0:00:01]} 25. Rad1 {[%emt 0:00:13]} Rxe4 {[%emt 0:02:23]} 26. Rxd6 {[%emt 0:00:24]} Rxd6 {[%emt 0:01:06]} 27. Rxd6 {[%emt 0:00:06]} Rxa4 $11 {[%emt 0:00:23][%mdl 4096] Endgame KR-KR. Black is a pawn up.} 28. Rd8+ {[%emt 0:02:58]} Kf7 {[%emt 0:00:01]} 29. Rd7+ {[%emt 0:00:06]} Kf6 {[%emt 0:00:54]} 30. Rxb7 {[%emt 0:00:06]} a5 {[%emt 0:01:54]} 31. Kf2 {[%emt 0:00:55]} Ra1 {[%emt 0:03:31]} 32. g4 {[%emt 0:03:29]} a4 {[%emt 0:03:03]} 33. h4 {[%emt 0:00:28]} a3 {[%emt 0:00:51]} 34. bxa3 {[%emt 0:01:44]} Rxa3 {[%emt 0:00:05]} 35. Rb6+ {[%emt 0:01:35]} Ke7 {[%emt 0:00:55]} 36. Rb7+ {[%emt 0:01:36]} Kf6 {[%emt 0:00:02]} 37. Rc7 {[%emt 0:00:21]} Ra4 {[%emt 0:06:20]} 38. c4 {[%emt 0:02:46][%cal Bc3c4,Bc4c5,Bc5c6][%mdl 32]} Ra3 {[%emt 0:05:12]} 39. c5 {[%emt 0:05:02]} e4 {[%emt 0:00:55][%cal Be5e4,Be4e3][%mdl 32]} 40. c6 {[%emt 0:02:30]} Rc3 {[%emt 0:00:24]} 41. Ke2 {[%emt 0:48:22]} e3 {[%emt 0:10:38]} 42. Rc8 {[%emt 0:00:00]} Ke5 {[%emt 0:04:12]} 43. c7 {[%emt 0:00:00]} Kd6 {[%emt 0:00:07]} 44. Rh8 {[%emt 0:00:00]} Rxc7 {[%emt 0:00:24]} 45. Rxh7 {[%emt 0:00:00]} Ke5 {[%emt 0:04:04]} 46. Kxe3 {[%emt 0:00:00]} Kf6 {[%emt 0:00:05]} 47. Rh5 {[%emt 0:00:00]} Rc3+ {[%emt 0:03:06]} 48. Kd4 {[%emt 0:00:00]} Ra3 {[%emt 0:00:13]} 49. Rf5+ {[%emt 0:00:00]} Kg6 {[%emt 0:00:08]} 50. Ke4 {[%emt 0:00:00]} Ra4+ {[%emt 0:04:42]} 51. Kf3 {[%emt 0:00:00]} Kh6 {[%emt 0:03:02]} 52. Re5 {[%emt 0:00:00]} g6 {[%emt 0:00:55]} 53. Re4 {[%emt 0:00:00]} Ra7 {[%emt 0:02:26]} 54. Kf4 {[%emt 0:00:00]} Rf7+ {[%emt 0:00:01]} 55. Ke5 {[%emt 0:00:00]} Kg7 {[%emt 0:03:18]} 56. Rd4 {[%emt 0:00:00]} Rf1 {[%emt 0:00:28]} 57. Rd7+ {[%emt 0:00:00]} Kg8 {[%emt 0:00:56]} 58. Rd5 {[%emt 0:00:00]} Kg7 {[%emt 0:00:22]} 59. Rd4 {[%emt 0:00:00]} Rf2 {[%emt 0:00:27]} 60. Rd1 {[%emt 0:00:00]} Rf3 {[%emt 0:00:47]} 61. Rd2 {[%emt 0:00:00]} Rf1 {[%emt 0:00:21]} 62. Ke4 {[%emt 0:00:00]} Kg8 {[%emt 0:01:09]} 63. Rd7 {[%emt 0:00:00]} Rf2 {[%emt 0:00:34]} 64. Ke3 {[%emt 0:00:00]} Rf1 {[%emt 0:00:09]} 65. Rd4 {[%emt 0:00:00]} Kg7 {[%emt 0:00:28]} 66. Ke4 {[%emt 0:00:00]} Rf2 {[%emt 0:00:26]} 67. Ke3 {[%emt 0:00:00]} Rf1 {[%emt 0:00:05]} 68. Rd2 {[%emt 0:00:00]} Rf7 {[%emt 0:01:00]} 69. Rf2 {[%emt 0:00:00]} Ra7 {[%emt 0:00:13]} 70. Kf3 {[%emt 0:00:00]} Rf7+ {[%emt 0:00:56]} 71. Kg3 {[%emt 0:00:00]} Ra7 {[%emt 0:00:08]} 72. Rf3 {[%emt 0:00:00]} Rb7 {[%emt 0:00:11]} 73. Re3 {[%emt 0:00:00]} Rf7 {[%emt 0:00:22]} 74. Re4 {[%emt 0:00:00]} Rf1 {[%emt 0:00:29]} 75. Re7+ {[%emt 0:00:00]} Kg8 {[%emt 0:00:06]} 76. g5 {[%emt 0:00:00]} Rf5 {[%emt 0:00:15]} 77. Kg4 {[%emt 0:00:00]} Rf1 {[%emt 0:00:28]} 78. Rd7 {[%emt 0:00:00]} Rf2 {[%emt 0:01:12]} 79. h5 {[%emt 0:00:00]} Rg2+ {[%emt 0:01:11]} 80. Kf4 {[%emt 0:00:00]} Rf2+ {[%emt 0:00:05]} 81. Kg3 {[%emt 0:00:00]} Rf1 {[%emt 0:07:14]} 82. h6 {[%emt 0:00:00]} Kh8 {[%emt 0:00:09]} (82... Rg1+ $11 83. Kf4 Kh8) 83. Rd6 $16 {[%emt 0:01:17]} Kh7 {[%emt 0:00:11]} 84. Rf6 {[%emt 0:00:06]} (84. Rd5 $16) 84... Ra1 {[%emt 0:01:23]} (84... Rg1+ $1 $11 85. Kf4 Rf1+ 86. Ke4 Rg1) 85. Re6 {[%emt 0:00:57]} (85. Rf7+ $14 Kh8 86. Rf3) 85... Rf1 {[%emt 0:00:10]} (85... Rg1+ $1 $11 {remains equal.} 86. Kf4 Rf1+ 87. Ke4 Re1+ 88. Kd5 Rd1+ 89. Ke5 Re1+ 90. Kd5) 86. Re7+ {[%emt 0:00:59]} Kh8 {[%emt 0:00:05]} 87. Re3 {[%emt 0:00:09]} (87. Re8+ $16 Kh7 88. Re7+ Kh8 89. Re5) 87... Kh7 {[%emt 0:02:04]} (87... Rg1+ $14 88. Kf4 Rf1+ 89. Rf3 Rd1) 88. Kg4 {[%emt 0:00:19]} (88. Re5 $16) 88... Rf7 {[%emt 0:00:54]} (88... Rg1+ $14 89. Kf4 Rf1+ 90. Rf3 Re1) 89. Rf3 {[%emt 0:00:32]} Ra7 {[%emt 0:00:09] [#]} 90. Kf4 {[%emt 0:00:00]} (90. Rd3 $1 $16) 90... Ra5 {[%emt 0:00:31]} (90... Ra1 $14) 91. Kg4 {[%emt 0:00:21]} Ra7 $1 {[%emt 0:00:48] [#]} 92. Rf6 {[%emt 0:00:14]} (92. Rd3 $1 $16) 92... Rb7 {[%emt 0:00:24]} (92... Ra1 $14) 93. Kf4 {[%emt 0:00:49]} (93. Rd6 $16) 93... Rb4+ $11 {[%emt 0:00:46]} 94. Ke5 {[%emt 0:00:22] aiming for Rf7+.} Rb5+ {[%emt 0:00:10]} 95. Kf4 {[%emt 0:00:05]} Rb4+ {[%emt 0:00:01]} 96. Kg3 {[%emt 0:00:10]} Rb7 {[%emt 0:00:18] Against Rf7+} (96... Rb5 $1 $11) 97. Kf3 {[%emt 0:00:39]} (97. Rd6 $16) 97... Rb3+ {[%emt 0:01:05]} 98. Kg4 {[%emt 0:00:17]} Rb4+ {[%emt 0:00:32]} (98... Rb7 $1 $11) 99. Rf4 $14 {[%emt 0:00:05]} Rb7 {[%emt 0:00:35]} (99... Rb1 $1 $14) 100. Kf3 {[%emt 0:00:21]} ({White should try} 100. Ra4 $16) 100... Re7 {[%emt 0:00:42]} ({Black should play} 100... Rb3+ $14 101. Kg4 Rb1) 101. Rd4 $16 {[%emt 0:00:40]} Re5 {[%emt 0:00:59]} 102. Rd7+ {[%emt 0:00:52]} Kh8 {[%emt 0:00:04]} 103. Kf4 {[%emt 0:00:04]} Rf5+ {[%emt 0:00:05]} 104. Kg4 {[%emt 0:00:04] White is much more active.} Rf1 {[%emt 0:00:38]} 105. Rg7 {[%emt 0:00:15]} (105. Rd5 $16) 105... Rf4+ $11 {[%emt 0:01:16]} 106. Kg3 {[%emt 0:00:06] White wants to mate with Rh7+.} Rf3+ {[%emt 0:00:06]} 107. Kxf3 {[%emt 0:00:03] Weighted Error Value: White=0.01 (flawless) /Black=0.01 (flawless)   Mistake:       	White=10    	Black=11     OK:         	White=34    	Black=39     Best:        	White=4     	Black=8      Strong:       	---       	Black=1} 1/2-1/2

[Event "Fagernes Chess GM-Swiss 2025"]
[Site "Fagernes"]
[Date "2025.04.14"]
[Round "2.3"]
[White "Urkedal, Frode Olav Olsen"]
[Black "Zhou, Yang-Fan"]
[Result "1-0"]
[Annotator "TA"]
[ECO "D85"]
[WhiteElo "2550"]
[BlackElo "2418"]
[PlyCount "61"]
[EventDate "2025.04.12"]
[EventCountry "NOR"]
[SourceTitle "playchess.com"]
[Source "ChessBase"]
[SourceQuality "1"]
[TimeControl "40/6000+30:2400+30"]

{[%evp 18,61,18,14,10,0,10,0,0,20,35,0,16,15,23,22,18,56,86,91,99,66,54,0,0,0,0,0,30,43,79,58,225,224,218,231,285,199,204,183,411,410,404,403,395,388]} 1. d4 {[%emt 0:00:03]} Nf6 {[%emt 0:01:38]} 2. c4 {[%emt 0:00:06]} g6 {[%emt 0:00:07]} 3. Nc3 {[%emt 0:00:08]} d5 {[%emt 0:00:13]} 4. cxd5 {[%emt 0:00:08]} Nxd5 {[%emt 0:00:04]} 5. e4 {[%emt 0:00:06]} Nxc3 {[%emt 0:00:05]} 6. bxc3 {[%emt 0:00:05]} Bg7 {[%emt 0:00:06]} 7. Nf3 {[%emt 0:00:36]} c5 {[%emt 0:00:34]} 8. h3 {[%emt 0:01:28]} O-O {[%emt 0:04:21]} 9. Be2 {[%emt 0:01:18]} Nc6 {[%emt 0:01:28]} 10. Be3 {[%emt 0:00:29]} cxd4 {[%emt 0:11:32] D85: Exchange Grünfeld: Unusual White 7th moves and lines with 7 Nf3.} 11. cxd4 {[%emt 0:01:55]} Qa5+ {[%emt 0:00:04]} 12. Bd2 {[%emt 0:00:10]} Qa3 {[%emt 0:00:13] The position is equal.} 13. d5 {[%emt 0:00:06]} Ne5 {[%emt 0:02:03]} (13... Bxa1 14. Qxa1 Nd8 15. O-O $11) 14. O-O {[%emt 0:01:07]} Bd7 {[%emt 0:10:18] The modern move.} 15. Rb1 {[%emt 0:16:27][%cal Ba1b1,Bb1b7,Bb7a7][%mdl 32]} Ba4 {[%emt 0:05:55]} 16. Qc1 {[%emt 0:12:27]} Qxa2 {[%emt 0:01:22]} 17. Rxb7 {[%emt 0:08:47]} Rfc8 {[%emt 0:08:42] [#]} 18. Rxa7 $1 {[%emt 0:00:55]} Rab8 $146 {[%emt 0:22:52]} (18... Rxc1 19. Rxa8+ Bf8 20. Bxc1 Nd7 21. Bd1 Nb6 22. Ra6 Qc4 23. Rxb6 Qxc1 24. Bxa4 Qc4 {1-0 Tari,A (2639)-Van Foreest,J (2688) Chessable Masters Prelim rapid 2021 (2)}) 19. Qe1 {[%emt 0:11:45]} Rc2 {[%emt 0:16:54]} 20. Nxe5 {[%emt 0:05:20]} (20. Rxe7 $2 Nxf3+ 21. Bxf3 Rxd2 $19) (20. Rxa4 $1 $14 Qxa4 21. Bd1) 20... Bxe5 $11 {[%emt 0:06:08]} 21. Rxa4 {[%emt 0:03:17]} (21. Rxe7 $2 Rxd2 $19) 21... Qxa4 {[%emt 0:01:21]} 22. Bd1 $1 {[%emt 0:00:06][%cal Od2h6] A strong pair of Bishops.} Rbb2 {[%emt 0:01:04][%cal Oh7h5]} 23. Bh6 {[%emt 0:03:13]} Bg7 {[%emt 0:05:48]} 24. Bg5 {[%emt 0:03:43][%cal Bh6g5,Bg5e7,Be7b4,Bb4a5][%mdl 32]} (24. Bxc2 {simplifies} Rxc2 25. Bxg7 Kxg7 26. Qa1+) 24... Bd4 $2 {[%emt 0:00:37] This move loses the game for Black.} 25. Bxc2 $18 {[%emt 0:01:18]} Rxc2 {[%emt 0:05:18]} 26. Bxe7 {[%emt 0:00:14]} Ra2 {[%emt 0:01:10][%cal Od4f2] [#] ...Bxf2+! is the strong threat.} 27. Qb4 {[%emt 0:13:00]} Qxb4 {[%emt 0:01:44]} 28. Bxb4 {[%emt 0:00:10]} Re2 $2 {[%emt 0:00:29]} (28... f5 {keeps fighting.} 29. exf5 Rb2) 29. d6 {[%emt 0:05:27][%cal Bd5d6,Bd6d7][%mdl 32] aiming for d7. White is winning.} Rxe4 {[%emt 0:01:09][%cal Od4f2]} 30. Ba5 {[%emt 0:00:32]} Bf6 {[%emt 0:00:15]} 31. d7 {[%emt 0:00:02] Weighted Error Value: White=0.16 (very precise) /Black=0.33  Loses game:     	---       	Black=1      Mistake:       	White=1     	Black=1      Inaccurate:     	White=3     	Black=3      OK:         	White=7     	Black=8      Best:        	White=5     	---        Strong:       	White=1     	---        Brilliant:      	White=1     	---} 1-0

[Event "Fagernes Chess GM-Swiss 2025"]
[Site "Fagernes"]
[Date "2025.04.14"]
[Round "2.4"]
[White "Dotzer, Lukas"]
[Black "Jumabayev, Rinat"]
[Result "0-1"]
[Annotator "TA"]
[ECO "B23"]
[WhiteElo "2453"]
[BlackElo "2549"]
[PlyCount "116"]
[EventDate "2025.04.12"]
[EventCountry "NOR"]
[SourceTitle "playchess.com"]
[Source "ChessBase"]
[SourceQuality "1"]
[TimeControl "40/6000+30:2400+30"]

{[%evp 10,116,36,19,51,22,37,16,66,14,20,6,15,0,0,0,-10,-3,0,-3,0,-11,-8,-45,-52,-67,-17,-12,-19,-28,-27,-84,-70,-74,-68,-74,-66,-72,-68,-77,-76,-70,-79,-72,-46,-119,-129,-145,-120,-168,-130,-122,-121,-152,-148,-151,-112,-91,-68,-112,-102,-121,-129,-148,-153,-167,-154,-143,-164,-214,-216,-215,-200,-180,-175,-220,-192,-207,-196,-257,-262,-310,-315,-460,-463,-463,-454,-464,-462,-456,-453,-691,-690,-691,-691,-4133,-684,-4145,-4145,-4137,-4133,-29990,-29979,-29990,-29990,-29996,-29997,-29997,-29998]} 1. e4 {[%emt 0:00:03]} c5 {[%emt 0:02:17]} 2. Nc3 {[%emt 0:00:06]} e6 {[%emt 0:00:59]} 3. Nge2 {[%emt 0:00:05]} a6 {[%emt 0:00:44]} 4. g3 {[%emt 0:00:06]} b5 {[%emt 0:01:24]} 5. Bg2 {[%emt 0:00:05]} Bb7 {[%emt 0:00:52]} 6. O-O {[%emt 0:00:06]} Nc6 {[%emt 0:20:09] B23: Closed Sicilian: Lines without g3.} 7. Re1 {[%emt 0:00:08]} Nge7 {[%emt 0:01:56]} 8. a4 $146 {[%emt 0:21:50]} (8. d3 Nd4 9. Nf4 g6 10. e5 Bxg2 11. Nxg2 Nec6 12. Bf4 g5 13. Be3 Nxe5 14. Bxd4 cxd4 15. Nxb5 {0-1 Erdos,V (2559)-Moussard,J (2642) EU-Cup 38th Durres 2023 (4.3)}) 8... Qb6 {[%emt 0:07:08]} (8... b4 $11) 9. b3 {[%emt 0:06:48]} ({White should play} 9. Nf4 $14) 9... Ng6 $11 {[%emt 0:06:55]} 10. Bb2 {[%emt 0:06:56]} Be7 {[%emt 0:01:27]} 11. axb5 {[%emt 0:23:59]} axb5 {[%emt 0:02:55]} 12. Rxa8+ {[%emt 0:00:06]} Bxa8 {[%emt 0:00:05]} 13. h4 {[%emt 0:01:27]} O-O {[%emt 0:03:59]} (13... Nge5 $6 14. Nd5 exd5 15. exd5 $16) 14. h5 {[%emt 0:04:27]} Nh8 {[%emt 0:20:20]} 15. Nf4 {[%emt 0:09:54][%cal Oc3d5]} f6 {[%emt 0:03:48]} 16. h6 {[%emt 0:12:45]} g6 {[%emt 0:01:33]} 17. Qg4 {[%emt 0:02:16][%cal Oc3d5]} Ne5 {[%emt 0:06:16]} (17... Nd4 $15) 18. Qe2 {[%emt 0:03:06]} Rb8 {[%emt 0:03:26]} 19. Ra1 {[%emt 0:02:17][%cal Oc3b5]} b4 {[%emt 0:03:33]} 20. Ra6 {[%emt 0:03:14]} (20. Na4 $1 $11 Qc7 21. Nxc5 Bxc5 (21... Qxc5 22. d4 $14) 22. d4) 20... Qd8 $17 {[%emt 0:00:52]} 21. Na4 {[%emt 0:01:14][%cal Oa4c5]} Nhf7 {[%emt 0:02:24]} 22. Nxc5 {[%emt 0:09:44]} Bxc5 {[%emt 0:04:06]} 23. d4 {[%emt 0:00:04] [#]} Bc6 $1 {[%emt 0:02:30]} 24. Ra1 {[%emt 0:00:05]} (24. dxc5 $2 Bb5 (24... Nxh6 25. Qd2 $16) 25. Qd2 Bxa6 $19) (24. Qd1 Bb5) 24... Bb5 {[%emt 0:02:07]} 25. Qd2 {[%emt 0:00:44]} Bf8 {[%emt 0:01:29]} (25... g5 26. Nh5 (26. dxc5 gxf4 27. gxf4 Ng6 $17) 26... Be7 27. dxe5 fxe5 28. c3 $16) 26. dxe5 {[%emt 0:00:16]} fxe5 {[%emt 0:01:29]} 27. Nh3 {[%emt 0:00:08]} (27. Nd3 $1 $15 Bxh6 28. Qd1) 27... Bc6 {[%emt 0:00:31]} 28. f4 {[%emt 0:01:56]} Bxh6 {[%emt 0:00:16]} (28... Nxh6 $6 29. Bxe5 Bc5+ 30. Bd4 $15) 29. Qf2 {[%emt 0:00:28]} (29. Nf2 $17) 29... Qb6 {[%emt 0:03:08]} 30. Qxb6 {[%emt 0:00:33]} Rxb6 {[%emt 0:00:01]} 31. fxe5 {[%emt 0:00:16]} Bg7 {[%emt 0:01:03][%cal Ob6b5]} 32. Bd4 {[%emt 0:00:40]} Rb8 {[%emt 0:01:25]} 33. Ra5 {[%emt 0:00:28]} Bb5 {[%emt 0:05:13]} 34. Ba7 {[%emt 0:00:35]} Rb7 {[%emt 0:00:20]} 35. Bc5 {[%emt 0:00:07] Threatens to win with Ra8+.} Bxe5 {[%emt 0:00:28]} 36. Ra8+ {[%emt 0:00:37]} Kg7 {[%emt 0:00:33]} 37. Bxb4 {[%emt 0:00:06]} Bc6 {[%emt 0:00:23]} (37... Bxg3 $2 38. e5 Bxe5 (38... d5 $2 39. Bf8+ Kg8 40. Bh6+ $18) 39. Bxb7 $18) 38. Bf8+ {[%emt 0:00:20]} Kf6 {[%emt 0:00:02]} 39. Re8 {[%emt 0:01:20] [#]} (39. Nf2 $142) 39... d6 $1 $19 {[%emt 0:01:19]} (39... Bxg3 40. Be7+ Kg7 (40... Ke5 41. Rf8 $16) 41. Bf8+ Kf6 42. Be7+ Kg7 43. Bf8+ Kf6 $11) 40. Rc8 {[%emt 0:00:18]} Bd7 {[%emt 0:00:20]} 41. Ra8 {[%emt 0:03:44]} Rc7 {[%emt 0:08:27]} (41... Bxg3 $2 42. e5+ Nxe5 43. Bxb7 $18) 42. Nf2 {[%emt 0:10:47]} h5 {[%emt 0:08:47] Against Ng4+} (42... Rxc2 43. Ng4+ Kg5 44. Nxe5 Rc1+ 45. Kh2 Nxe5 46. Kh3 $15) (42... Bxg3 43. c4) 43. c4 {[%emt 0:05:19]} Rb7 {[%emt 0:01:48]} 44. g4 {[%emt 0:04:22]} (44. Ra1 $142 Bxa1 45. e5+ Bxe5 (45... Kxe5 46. Bg7+ Kf5 47. Bh3+ Kg5 48. Ne4#) 46. Bxb7) 44... Rxb3 {[%emt 0:11:00]} 45. Ra7 {[%emt 0:02:12]} Rb8 {[%emt 0:01:55]} 46. gxh5 {[%emt 0:06:43]} (46. Rxd7 {was necessary.} Rxf8 47. Kf1) 46... Bd4 {[%emt 0:03:13]} ({Resist} 46... Rxf8 47. hxg6 Bd4 48. Rxd7 Kxg6 49. Bh3 $19) ({Weaker is} 46... gxh5 47. Rxd7 Rxf8 48. Nd3 $19) 47. Rxd7 {[%emt 0:01:34]} Rxf8 {[%emt 0:00:05]} 48. hxg6 {[%emt 0:02:25]} Kxg6 {[%emt 0:03:05] Threatens to win with ...Bxf2+.} 49. Bh3 {[%emt 0:00:29]} Ng5 {[%emt 0:01:59][%csl LRe4,LRf2,LRh3]} 50. Bf5+ {[%emt 0:07:19]} (50. Rxd6 $142 Rxf2 (50... Bxf2+ $2 51. Kf1 $19) 51. Bf5+ Rxf5+ 52. Rxd4) 50... exf5 {[%emt 0:00:11]} 51. Rxd6+ {[%emt 0:00:21]} Kh5 {[%emt 0:00:12]} 52. exf5 {[%emt 0:00:31] [#]} Rxf5 {[%emt 0:00:48]} 53. Rd5 {[%emt 0:00:33]} (53. Rxd4 Nf3+) 53... Bxf2+ {[%emt 0:00:14]} 54. Kg2 {[%emt 0:00:08]} Rf4 {[%emt 0:03:05][%cal Of2e3] ( -> ...Be3!)} 55. c5 {[%emt 0:00:40]} Kg4 {[%emt 0:00:48] Black mates.} 56. c6 {[%emt 0:00:27]} Be3 {[%emt 0:00:46]} 57. c7 {[%emt 0:00:58]} Rf2+ {[%emt 0:00:25]} 58. Kh1 {[%emt 0:00:08]} Rf1+ {[%emt 0:00:15] Weighted Error Value: White=0.58/Black=0.19 (very precise)   Mistake:       	White=8     	Black=2      Inaccurate:     	White=3     	Black=1      OK:         	White=17    	Black=23     Best:        	White=2     	Black=3      Strong:       	---       	Black=1} 0-1